Cogmind - Beta 16.1 @@@ ROGUE MODE // 2026.03.13 @ 00:49:20 Player: obl-vn Result: Destroyed by H-81 Overseer with Heavy Linear Accelerator Performance ------------- Evolutions (9) 4500 Regions Visited (23) 4600 Robots Destroyed (78) 390 Value Destroyed (1977) 1977 Prototype IDs (38) 760 Alien Tech Used (2) 400 Bonus (-2554) -2554 TOTAL SCORE: 10073 Bonus ------- High Alert Combat Kills 36 Follower Combat Kills 5298 Registered with UFD 300 Met Optimus in HQ 500 Met Imprinter 300 Met Zhirov 300 Friendly Fire -9288 Cogmind --------- Core Integrity 0/1600 Matter 112/300 Energy 99/100 System Corruption 18% Temperature Cool (0) Movement Core (50) Location -1/Access Parts ------- > --- POWER (1) -------- (None) > --- PROPULSION (8) --- (None) > --- UTILITY (10) ----- (None) > --- WEAPON (6) ------- (None) > --- INVENTORY (5) ---- (None) Peak State ------------ > --- POWER ------------ Reinforced Deuterium Engine Heavy Antimatter Reactor Particle Reactor > --- PROPULSION ------- Armored Medium Treads Heavy Treads Advanced Heavy Siege Treads Myomer Leg > --- UTILITY ---------- Large Storage Unit Matter Compressor Experimental Optical Array Layered Heavy Armor Plating Advanced Force Field Advanced Hacking Suite Advanced Hacking Suite Advanced Hacking Suite Power Bank > --- WEAPON ----------- 1B-0RG's Assimilator Power Maul > --- INVENTORY -------- Neutrino Core Armored Huge Wheel Advanced Power Amplifier Matter Compressor Matter Compressor Matter Compressor Enhanced Scrap Shield Improved Powered Armor Advanced Hacking Suite Amulet of Y3-NDR Transdimensional Reconstructor Hypervelocity Mass Driver [Rating: 201] Favorites ----------- Power Ion Engine Engine Ion Engine Power Core Nuclear Core Reactor Heavy Antimatter Reactor Propulsion Spiked Treads Treads Spiked Treads Leg Carbon-fiber Leg Wheel Armored Huge Wheel Utility Advanced Hacking Suite Device Amulet of Y3-NDR Storage Large Storage Unit Processor Advanced Signal Interpreter Hackware Advanced Hacking Suite Protection Layered Heavy Armor Plating Weapon 1B-0RG's Assimilator Energy Gun Improved Medium Laser Energy Cannon Heavy Neutron Cannon Ballistic Gun Barrage Gun Ballistic Cannon Battle Cannon Launcher Grenade Launcher Impact Weapon Power Maul Slashing Weapon Plasma Sword Special Melee Weapon 1B-0RG's Assimilator Build | -11 -10 -10 -9 -9 -6 -6 -6 -6 -5 -5 -5 -5 -5 -4 -4 -4 -4 -4 -3 -3 -2 -2 -1 ------- Run | Yrd Mat Sub Rec Scr Fac Low Low Zio Pro Fac Upp Upp Zhi Pro Fac Upp Upp War Pro Res Res Qua Acc Slots Evolved 18 | . . . . . 8 . . . . 2 . . . . 2 . . . . 2 2 . 2 Power . | . . . . . . . . . . . . . . . . . . . . . . . . Propulsion 6 | . . . . . 2 . . . . . . . . . . . . . . 1 1 . 2 Utility 8 | . . . . . 3 . . . . 1 . . . . 2 . . . . 1 1 . . Weapon 4 | . . . . . 3 . . . . 1 . . . . . . . . . . . . . Parts Attached 104 | 7 6 8 . 3 10 3 3 5 . 5 3 . . 4 3 1 . . 2 3 32 2 4 Power 10 | 1 . 1 . . . 1 . 1 . 1 1 . . . . . . . . . 4 . . Engine 4 | 1 . 1 . . . 1 . . . . 1 . . . . . . . . . . . . Core 3 | . . . . . . . . 1 . 1 . . . . . . . . . . 1 . . Reactor 3 | . . . . . . . . . . . . . . . . . . . . . 3 . . Propulsion 24 | 2 2 1 . . 4 1 1 1 . . . . . 1 . . . . 1 . 9 . 1 Treads 17 | 2 2 1 . . . . 1 1 . . . . . 1 . . . . 1 . 8 . . Leg 5 | . . . . . 4 . . . . . . . . . . . . . . . 1 . . Wheel 2 | . . . . . . 1 . . . . . . . . . . . . . . . . 1 Hover . | . . . . . . . . . . . . . . . . . . . . . . . . Flight . | . . . . . . . . . . . . . . . . . . . . . . . . Utility 49 | 2 2 1 . 2 5 . 2 3 . 3 2 . . 3 3 1 . . 1 3 12 2 2 Device 19 | 1 . 1 . 1 2 . 1 1 . . 2 . . 1 . . . . . . 7 1 1 Storage 10 | 1 1 . . 1 . . 1 2 . . . . . 1 . 1 . . . 2 . . . Processor 4 | . . . . . 2 . . . . . . . . . . . . . . 1 . . 1 Hackware 7 | . . . . . . . . . . . . . . . 3 . . . 1 . 3 . . Protection 9 | . 1 . . . 1 . . . . 3 . . . 1 . . . . . . 2 1 . Artifact . | . . . . . . . . . . . . . . . . . . . . . . . . Weapon 21 | 2 2 5 . 1 1 1 . . . 1 . . . . . . . . . . 7 . 1 Energy Gun 1 | . 1 . . . . . . . . . . . . . . . . . . . . . . Energy Cannon 4 | . . . . . . . . . . . . . . . . . . . . . 3 . 1 Ballistic Gun 4 | 2 . 1 . . 1 . . . . . . . . . . . . . . . . . . Ballistic Cannon 5 | . 1 2 . 1 . . . . . . . . . . . . . . . . 1 . . Launcher 2 | . . 1 . . . . . . . . . . . . . . . . . . 1 . . Special Weapon . | . . . . . . . . . . . . . . . . . . . . . . . . Impact Weapon 3 | . . 1 . . . . . . . 1 . . . . . . . . . . 1 . . Slashing Weapon 1 | . . . . . . . . . . . . . . . . . . . . . 1 . . Piercing Weapon . | . . . . . . . . . . . . . . . . . . . . . . . . Special Melee Weapon 1 | . . . . . . 1 . . . . . . . . . . . . . . . . . Unidentified Prototypes 16 | . 1 1 . . . 1 1 1 . . 1 . 1 1 . . . . . . 7 . 1 Corrupted Parts 1 | . . . . . . . . . . . . . . . . . . . 1 . . . . System Corruption 3 | . . . . . . . . . . . . . . . . . . . 3 . . . . Parts Lost 41 | . . . . . . 5 . . . 1 . . . . . . . . 1 . 21 5 8 Power 6 | . . . . . . 2 . . . . . . . . . . . . . . 4 . . Propulsion 9 | . . . . . . 1 . . . . . . . . . . . . 1 . 3 3 1 Utility 18 | . . . . . . 1 . . . 1 . . . . . . . . . . 10 1 5 Weapon 8 | . . . . . . 1 . . . . . . . . . . . . . . 4 1 2 Highest Loss Streak 12 | . . . . . . 2 . . . 1 . . . . . . . . 1 . 12 2 5 To Critical Strikes . | . . . . . . . . . . . . . . . . . . . . . . . . Average Backups 10 | 1 5 5 5 4 7 12 13 12 12 12 13 13 13 13 12 11 13 14 13 13 10 4 3 Power . | . 1 . . . . . . . . 1 2 2 2 2 2 2 2 2 1 2 1 . . Propulsion 1 | . . . . . . 3 3 2 1 . 1 1 1 . . . . . . . 1 . . Utility 6 | . 2 3 4 4 5 6 7 9 10 10 10 10 9 10 9 7 9 10 9 9 6 2 1 Weapon . | . 1 . . . . 2 3 . . . . . . . . . 1 1 1 1 1 2 2 Tool/Special . | . . . . . . . . . . . . . . . . . . . . . . . . Unused Backups 15 | . 1 3 2 1 . . . . . 1 1 . . 1 . 1 . . . . 2 2 . Power . | . . . . . . . . . . . . . . . . . . . . . . . . Propulsion 3 | . . 2 . . . . . . . . . . . . . 1 . . . . . . . Utility 9 | . 1 . 2 1 . . . . . 1 1 . . 1 . . . . . . 1 1 . Weapon 3 | . . 1 . . . . . . . . . . . . . . . . . . 1 1 . Tool/Special . | . . . . . . . . . . . . . . . . . . . . . . . . Average Slot Usage (%) 74 | . 99 99 100 87 66 60 59 62 66 67 64 64 63 65 67 72 72 68 67 63 68 46 19 Engine 6 | . 14 14 14 14 5 3 . . . . 4 5 5 5 5 5 5 5 5 4 2 . . Treads 16 | . 28 28 28 28 9 . 12 13 13 11 11 11 11 11 10 10 10 10 8 8 11 8 . Wheel 3 | . . . . . . 4 6 6 6 5 5 5 5 5 5 5 5 5 5 4 . . 1 Device 10 | . 7 13 14 13 7 13 13 6 6 1 9 11 10 10 . 4 5 5 3 . 9 4 3 Storage 10 | . 14 14 14 2 6 6 12 19 20 17 6 5 5 7 5 19 20 5 9 9 6 1 . Processor 2 | . . . . . 3 6 6 6 6 5 5 5 5 5 5 . . . . 2 3 4 2 Hackware 3 | . . . . . . . . . . . . . . . 13 15 15 15 15 14 11 17 11 Protection 1 | . 6 . . . 4 4 . . . 7 5 5 5 3 10 . . 10 8 9 2 . . Ballistic Gun 2 | . 18 . 14 14 6 . . . . . . . . . . . . . . . . . . Ballistic Cannon 4 | . 9 14 14 14 11 . . . . . . . . . . . . . . . . . . Impact Weapon 3 | . . 11 . . . . . . . 4 5 5 5 5 5 5 5 5 5 4 3 2 . Special Melee Weapon 3 | . . . . . . 5 6 6 6 5 5 5 5 5 5 5 5 5 5 4 2 . . Peak Build Rating 201 | 7 10 22 22 28 53 109 105 110 106 117 129 126 126 129 140 142 144 144 144 159 201 142 45 Average Rating 86 | 5 7 20 21 22 37 100 101 103 105 111 124 126 125 127 139 134 135 144 139 154 180 89 32 On Entrance 91 | . 7 10 22 22 22 53 97 102 105 106 117 126 126 126 128 140 135 144 144 141 159 136 29 Avg Prop Armor Cover (%) 12 | . . . . . 6 7 12 16 16 11 9 9 9 11 8 16 16 8 7 9 7 41 31 Naked Turns 13 | . . . . . . . . . . . . . . . . . . . . . . . 13 Heaviest Build 179 | 15 23 23 22 35 47 90 80 88 88 117 122 122 122 133 133 125 126 126 128 135 179 93 15 Greatest Support 240 | 40 46 46 43 43 60 60 40 28 48 28 28 28 28 28 28 28 28 28 70 28 240 225 3 Greatest Overweight (x) 6 | . . . . . 1 3 2 3 3 4 4 4 4 4 4 4 4 4 4 4 6 . 4 Average Overweight (x) 1 | . . . . . . 2 1 2 2 3 4 4 4 3 4 3 3 4 3 4 1 . . Largest Inventory Capacity 15 | 8 10 10 10 15 15 15 15 15 15 15 15 15 15 15 15 15 15 15 15 15 15 15 5 Average Capacity 12 | 7 8 10 10 5 15 15 15 15 15 15 15 15 15 15 15 15 15 15 15 15 15 8 5 Most Carried 15 | 5 10 10 10 13 15 15 15 15 15 15 15 15 15 15 15 15 15 15 15 15 15 10 5 Average Carried 11 | 1 5 9 10 5 12 14 14 14 14 14 14 15 14 14 13 13 14 15 14 14 13 5 3 Final Capacity 15 | 8 10 10 10 15 15 15 15 15 15 15 15 15 15 15 15 15 15 15 15 15 15 5 5 Final Carried 15 | 1 10 10 10 13 13 15 15 15 15 15 15 15 14 15 14 15 15 15 15 15 8 5 . Class Distribution -------------------- 66% | Mutant 21% | Hacker-Mutant 6% | Derelict-Mutant 3% | Scavenger-Mutant Dominant Class ---------------- Mutant | -10/Materials Mutant | -10/Subcaves Mutant | -9/Recycling Mutant | -9/Scraptown Derelict-Tank | -6/Factory Scavenger-Mutant | -6/Lower Caves Mutant | -6/Lower Caves Derelict-Mutant | -6/Zion Derelict-Mutant | -5/Proximity Caves Mutant | -5/Factory Mutant | -5/Upper Caves Mutant | -5/Upper Caves Mutant | -5/Zhirov Mutant | -4/Proximity Caves Hacker-Mutant | -4/Factory Hacker-Mutant | -4/Upper Caves Hacker-Mutant | -4/Upper Caves Hacker-Mutant | -4/Warlord Hacker-Mutant | -3/Proximity Caves Hacker-Mutant | -3/Research Hacker-Mutant | -2/Research Hacker-Mutant | -2/Quarantine Hacker-Mutant | -1/Access Resources | -11 -10 -10 -9 -9 -6 -6 -6 -6 -5 -5 -5 -5 -5 -4 -4 -4 -4 -4 -3 -3 -2 -2 -1 ----------- Run | Yrd Mat Sub Rec Scr Fac Low Low Zio Pro Fac Upp Upp Zhi Pro Fac Upp Upp War Pro Res Res Qua Acc Matter Collected 19222 | 236 265 650 195 880 285 839 2417 217 502 556 889 121 94 1831 167 1906 1176 . 1423 225 4348 . . Remotely . | . . . . . . . . . . . . . . . . . . . . . . . . Salvage Created 5578 | 52 358 175 . . 292 118 205 . 159 50 222 25 94 388 14 1115 723 . 450 . 1097 . 41 Parts 155 | 8 18 2 . . 19 1 3 . . . 7 . . 7 . 13 25 . 12 . 34 . 6 Haulers Intercepted 1 | . 1 . . . . . . . . . . . . . . . . . . . . . . Recyclers Shooed . | . . . . . . . . . . . . . . . . . . . . . . . . Parts Field Recycled . | . . . . . . . . . . . . . . . . . . . . . . . . Retrieved Matter . | . . . . . . . . . . . . . . . . . . . . . . . . Parts Self-Destructed 106 | . . 24 . . . 1 33 . 2 . 3 . . 14 . 9 6 . 14 . . . . Prevented 44 | . . . . . . . 1 . 10 . 3 . . 23 . . 1 . 6 . . . . Parts Restored . | . . . . . . . . . . . . . . . . . . . . . . . . Kills | -11 -10 -10 -9 -9 -6 -6 -6 -6 -5 -5 -5 -5 -5 -4 -4 -4 -4 -4 -3 -3 -2 -2 -1 ------- Run | Yrd Mat Sub Rec Scr Fac Low Low Zio Pro Fac Upp Upp Zhi Pro Fac Upp Upp War Pro Res Res Qua Acc Combat Hostiles Destroyed 34 | . 8 . . . 8 3 1 . . . . . . . . . . . . . 10 . 4 Melee 3 | . . . . . . . 1 . . . . . . . . . . . . . 2 . . Guns 8 | . 5 . . . 1 2 . . . . . . . . . . . . . . . . . Cannons 11 | . 3 . . . 7 1 . . . . . . . . . . . . . . . . . AOE 5 | . . . . . . . . . . . . . . . . . . . . . 1 . 4 Classes Destroyed 17 | 1 5 2 . . 1 1 3 . 1 . . . . . . 2 . . . . 1 . . Worker 4 | . 1 . . . . . . . . . . . . . 1 . . . . . 2 . . Tunneler 3 | 3 . . . . . . . . . . . . . . . . . . . . . . . Hauler 1 | . 1 . . . . . . . . . . . . . . . . . . . . . . Recycler 1 | . . . . . . . . . . . . . . . . . . . . . 1 . . Minesweeper 1 | . . . . . . . . . . . . . . . . 1 . . . . . . . Mechanic 1 | . . . . . . . . . . . . . . . . 1 . . . . . . . Watcher 2 | . 1 . . . 1 . . . . . . . . . . . . . . . . . . Swarmer 11 | . 3 . . . 3 1 . . . . . . . . . . . . . . . . 4 Grunt 16 | . 5 . . . 4 1 1 . . . . . . . . . . . . . 5 . . Sentry 4 | . . . . . . 1 . . . . . . . . . . . . . . 3 . . Programmer 3 | . . . . . 1 . . . . 1 . . . . . . . . . . 1 . . Heavy 1 | . . . . . . . . . . . . . . . . . . . . . 1 . . Artisan 1 | . . 1 . . . . . . . . . . . . . . . . . . . . . Cobbler 1 | . . 1 . . . . . . . . . . . . . . . . . . . . . Decomposer 2 | . . . . . . . 1 . . . . 1 . . . . . . . . . . . Packrat 7 | . . . . . . . . . 2 . . . . 1 . 4 . . . . . . . Samaritan 14 | . . . . . . . 1 . . . 4 . . . . 1 6 . 2 . . . . Thug 3 | . . . . . . . 3 . . . . . . . . . . . . . . . . Butcher 1 | . . . . . . . 1 . . . . . . . . . . . . . . . . Wizard 24 | . . . . . . . 1 . . . 1 . . 5 . 7 8 . 2 . . . . Mutant 2 | . . . . . . . 1 . . . . . . . . 1 . . . . . . . Best Kill Streak 5 | 1 5 . . . 3 3 1 . . . . . . . 1 1 . . 1 . 4 . 2 Combat Bots Only 5 | . 5 . . . 3 3 1 . . . . . . . . . . . . . 4 . 2 Max Kills in Single Turn 2 | 1 1 1 . . 2 1 1 . 1 1 1 1 . 1 1 1 1 . 1 . 2 . 2 Gunslinging . | . . . . . . . . . . . . . . . . . . . . . . . . Exploded 2 | . . . . . . . . . . . . . . . . . . . . . 1 . 2 Melee 1 | . . . . . . . 1 . . . . . . . . . . . . . 1 . . Uniques/NPCs Destroyed . | . . . . . . . . . . . . . . . . . . . . . . . . Combat | -11 -10 -10 -9 -9 -6 -6 -6 -6 -5 -5 -5 -5 -5 -4 -4 -4 -4 -4 -3 -3 -2 -2 -1 -------- Run | Yrd Mat Sub Rec Scr Fac Low Low Zio Pro Fac Upp Upp Zhi Pro Fac Upp Upp War Pro Res Res Qua Acc Hostile Shots Fired 1084 | . 48 4 . 6 24 155 5 . . 36 . . . 5 2 . . . 42 . 442 190 125 Missed 360 | . 15 3 . . 9 47 2 . . 10 . . . 2 2 . . . 19 . 126 85 40 Hits 724 | . 33 1 . 6 15 108 3 . . 26 . . . 3 . . . . 23 . 316 105 85 Melee 24 | . . . . . . . 1 . . . . . . . . . . . . . 4 3 16 Projectile 700 | . 33 1 . 6 15 108 2 . . 26 . . . 3 . . . . 23 . 312 102 69 AOE 5 | . . 3 . . . . . . . . . . . . . . . . . . 2 . . Critical Strikes 40 | . . . . . 1 . . . . 2 . . . . . . . . 1 . 20 4 12 Damage Taken 16766 | . 401 53 16 161 266 1202 127 . 27 751 14 . . 45 35 20 . . 765 47 8020 2333 2483 Core 3446 | . 48 24 . 18 18 129 48 . . 169 14 . . 11 . 20 . . 37 . 828 413 1669 Absorbed by Shields 2143 | . . . . . . . . . . . . . . 18 . . . . . . 2125 . . Reduced by Siege Mode 38 | . . . . . . . . . . . . . . . . . . . . . 38 . . Redirected to Shielding 101 | . . . . . . . . . . . . . . . . . . . . . 101 . . Ignored by Resistances 12 | . . . . . . . . . . 12 . . . . . . . . . . . . . Regen/Repaired (Parts) 1953 | . . . . . . 171 61 . 27 315 . . . 17 . 18 . . 214 . 657 473 . Core Remaining (%) 74 | 100 . . . 64 . . . . 77 . . . . 80 . . . . 95 100 . 8 . Volleys Fired 155 | 8 33 39 1 1 13 7 . . . . . . . . . . . . . . 32 . 21 Largest 4 | 2 2 1 2 1 3 4 . . . . . . . . . . . . . . 1 . 1 Hottest 124 | 40 50 33 61 40 101 124 . . . . . . . . . . . . . . 110 . 113 Shots Fired 238 | 16 62 39 2 1 39 27 . . . . . . . . . . . . . . 31 . 21 Gun 83 | 16 39 . 1 . 13 14 . . . . . . . . . . . . . . . . . Cannon 121 | . 23 17 1 1 26 13 . . . . . . . . . . . . . . 19 . 21 Launcher 34 | . . 22 . . . . . . . . . . . . . . . . . . 12 . . Special . | . . . . . . . . . . . . . . . . . . . . . . . . Kinetic 167 | 16 62 17 2 1 39 27 . . . . . . . . . . . . . . 3 . . Thermal 37 | . . . . . . . . . . . . . . . . . . . . . 16 . 21 Explosive 22 | . . 22 . . . . . . . . . . . . . . . . . . . . . Electromagnetic 12 | . . . . . . . . . . . . . . . . . . . . . 12 . . Robot Hit Streak 9 | 4 8 1 3 . 9 3 . . . . . . . . . . . . . . 5 . 2 Robot Miss Streak 5 | 2 5 1 . . 1 1 . . . . . . . . . . . . . . 2 . 4 Penetration Max 1 | . . . . . 1 . . . . . . . . . . . . . . . . . . Secondary Targets 1 | . 1 . . . . . . . . . . . . . . . . . . . . . . Max Gunslinging Chain 1 | . 1 . . . . . . . . . . . . . . . . . . . . . . Shots Hit Robots 244 | 9 29 16 2 . 26 13 . . . 7 5 1 2 11 2 44 29 . 8 . 37 . 3 Core Hits 185 | 3 17 4 . . 18 8 85 . . . 2 . . 2 . 6 2 . 1 . 33 . 4 Critical Kills 2 | . . . . . . . . . . . . . . . . 1 . . 1 . . . . Critical Parts Destroyed 28 | . . 2 . . . . . . . 1 . . . 2 . 12 6 . 3 . 2 . . Critical Strikes 35 | . 1 3 . . 1 1 . . . 1 . . . 2 . 13 6 . 4 . 3 . . Destroy 1 | . . . . . . . . . . . . . . . . . . . . . 1 . . Blast 3 | . 1 . . . 1 1 . . . . . . . . . . . . . . . . . Smash 31 | . . 3 . . . . . . . 1 . . . 2 . 13 6 . 4 . 2 . . Melee Attacks 464 | . . 258 . . . . . . . 41 6 1 2 11 4 45 29 . 10 3 54 . . Impact 453 | . . 258 . . . . . . . 41 6 1 2 11 4 45 29 . 10 3 43 . . Slashing 11 | . . . . . . . . . . . . . . . . . . . . . 11 . . Piercing . | . . . . . . . . . . . . . . . . . . . . . . . . Sneak Attacks 105 | . . 7 . . . . . . . 2 5 1 . 11 2 40 29 . 4 . 4 . . Combat Hostiles 2 | . . . . . . . . . . . . . . . . . . . . . 2 . . Follow-up Attacks 3 | . . . . . . . . . . . . . . . . . . . . . 3 . . Damage Inflicted 19942 | 106 512 770 36 1 623 282 4389 . 12 462 520 90 168 971 143 4260 2812 . 856 . 2075 2 852 Guns 686 | 106 293 . 18 . 157 112 . . . . . . . . . . . . . . . . . Cannons 1332 | . 210 41 18 . 466 143 . . . . . . . . . . . . . . 329 . 125 Explosions 1658 | . . 43 . . . . . . . . . . . . . . . . . . 910 . 705 Melee 11798 | . . 686 . . . . . . . 456 520 90 168 971 143 4260 2812 . 856 . 836 . . Ramming 4468 | . 9 . . 1 . 27 4389 . 12 6 . . . . . . . . . . . 2 22 Kinetic 1589 | 106 503 41 36 . 623 255 . . . . . . . . . . . . . . 25 . . Thermal 429 | . . . . . . . . . . . . . . . . . . . . . 304 . 125 Explosive 748 | . . 43 . . . . . . . . . . . . . . . . . . . . 705 Electromagnetic 910 | . . . . . . . . . . . . . . . . . . . . . 910 . . Impact 11468 | . . 686 . . . . . . . 456 520 90 168 971 143 4260 2812 . 856 . 506 . . Slashing 330 | . . . . . . . . . . . . . . . . . . . . . 330 . . Piercing . | . . . . . . . . . . . . . . . . . . . . . . . . Highest Corruption 36 | . . . . . . . . . . 6 6 6 6 6 . . . . 3 . 36 36 18 Average Corruption 7 | . . . . . . . . . . 3 6 6 6 6 . . . . 3 . 9 36 9 Corruption Purged . | . . . . . . . . . . . . . . . . . . . . . . . . Corruption Blocked . | . . . . . . . . . . . . . . . . . . . . . . . . Effects 242 | . . . . . . . . . . 8 37 14 5 69 . . . . 1 . 85 21 2 Message Errors 57 | . . . . . . . . . . 4 9 4 . 21 . . . . . . 15 4 . Matter Fused 65 | . . . . . . . . . . 2 10 2 . 22 . . . . 1 . 25 1 2 Heat Flow Errors 32 | . . . . . . . . . . 2 6 4 . 7 . . . . . . 11 2 . Energy Discharges 26 | . . . . . . . . . . . 4 1 2 8 . . . . . . 8 3 . Parts Rejected 7 | . . . . . . . . . . . 1 . . . . . . . . . 4 2 . Data Loss (minor) 21 | . . . . . . . . . . . 4 3 . 5 . . . . . . 9 . . Data Loss (major) 11 | . . . . . . . . . . . 1 . 2 4 . . . . . . 4 . . Misfires 1 | . . . . . . . . . . . . . . . . . . . . . 1 . . Alerts 8 | . . . . . . . . . . . 2 . 1 2 . . . . . . 3 . . Misdirections 12 | . . . . . . . . . . . . . . . . . . . . . 3 9 . Weapon Failures 2 | . . . . . . . . . . . . . . . . . . . . . 2 . . Overload Shots . | . . . . . . . . . . . . . . . . . . . . . . . . Overflow Damage 7630 | . 14 200 . . . . 12 . 2 180 262 79 133 683 83 2808 2117 . 651 . 263 . 143 Projectiles 265 | . 14 . . . . . . . . . . . . 29 . 120 61 . . . 41 . . Explosions 141 | . . . . . . . . . . . . . . . . . . . . . . . 141 Melee 7224 | . . 200 . . . . 12 . 2 180 262 79 133 654 83 2688 2056 . 651 . 222 . 2 Knockbacks 57 | . 5 4 . . 6 1 1 . . 2 . . . 4 . 21 10 . 1 . 1 . 1 Impact 33 | . 1 3 . . . . 1 . . 2 . . . 2 . 13 8 . 1 . 1 . 1 Kinetic 11 | . 4 . . . 6 1 . . . . . . . . . . . . . . . . . Secondary 13 | . . 1 . . . . . . . . . . . 2 . 8 2 . . . . . . Self-Inflicted Damage 283 | . . 9 . . . 3 . . . . . . . . . . . . . . 59 . 212 Shots 8 | . . 1 . . . . . . . . . . . . . . . . . . 5 . 2 Rammed 1200 | . 1 . . 1 . 1 1191 . 1 1 . . . . . . . . . . . 2 2 Targets Rammed 1246 | . 1 . . 1 . 6 1231 . 2 1 . . . . . . . . . . . 2 2 Kicked 36 | . . . . . . 5 31 . . . . . . . . . . . . . . . . Crushed 10 | . . . . . . . 9 . 1 . . . . . . . . . . . . . . Highest Temperature 328 | . 104 . 20 6 . . . . . 167 260 260 . 272 . . . . 328 . 262 156 112 Average Temperature 48 | . 60 . 15 6 . . . . . 86 114 114 . 104 . . . . 173 . 32 96 40 Received Heat Transfer 1712 | . 162 6 . 72 57 174 27 . . 27 . . . . 9 . . . 428 . 354 396 . Effects 2 | . . . . . . . . . . . . . . 1 . . . . . . 1 . . Energy Bleed 2 | . . . . . . . . . . . . . . 1 . . . . . . 1 . . Siege Activations 2 | . . . . . . . . . . . . . . . . . . . . . 2 . . Total Turns 8 | . . . . . . . . . . . . . . . . . . . . . 8 . . Longest Duration 5 | . . . . . . . . . . . . . . . . . . . . . 5 . . Martial Activations . | . . . . . . . . . . . . . . . . . . . . . . . . Shielding Activations . | . . . . . . . . . . . . . . . . . . . . . . . . Robots Disrupted 1 | . . . . . . . . . . . . . . . . . . . . . 1 . . Combat Hostiles 1 | . . . . . . . . . . . . . . . . . . . . . 1 . . Robots Corrupted 32 | . . 3 . . . . 3 . 1 1 3 . . 2 . 4 5 . 2 . 8 . . Combat Hostiles 13 | . . 3 . . . . 1 . . . . . . . . 1 . . 1 . 7 . . Parts Fried 50 | . . 3 . . . . . . 1 2 1 . 1 4 1 4 6 . 3 . 24 . . Impact Corruptions 272 | . . 5 . . . . 10 . 1 6 25 2 6 26 2 91 68 . 20 . 9 . 1 Robots Melted . | . . . . . . . . . . . . . . . . . . . . . . . . Combat Hostiles . | . . . . . . . . . . . . . . . . . . . . . . . . Parts Melted . | . . . . . . . . . . . . . . . . . . . . . . . . Heat Transferred . | . . . . . . . . . . . . . . . . . . . . . . . . Parts Sabotaged 1 | . . . . . . . . . . . . . . . . . . . . . . 1 . Parts Stolen . | . . . . . . . . . . . . . . . . . . . . . . . . Parts Stripped . | . . . . . . . . . . . . . . . . . . . . . . . . Power Chain Reactions 1 | . . . . . . . . . . . . . . . . . . . . . 1 . . Alert | -11 -10 -10 -9 -9 -6 -6 -6 -6 -5 -5 -5 -5 -5 -4 -4 -4 -4 -4 -3 -3 -2 -2 -1 ------- Run | Yrd Mat Sub Rec Scr Fac Low Low Zio Pro Fac Upp Upp Zhi Pro Fac Upp Upp War Pro Res Res Qua Acc Maximum Alert Level 2 | . . . . . . . . . . 2 . . . . 2 . . . . . 2 1 1 Low Security (%) 53 | 100 100 . 100 . 100 . . . . 16 . . . . 42 . . . . 100 36 53 68 Level 1 34 | . . . . . . . . . . 69 . . . . 14 . . . . . 46 46 31 Level 2 11 | . . . . . . . . . . 14 . . . . 43 . . . . . 16 . . Level 3 . | . . . . . . . . . . . . . . . . . . . . . . . . Level 4 . | . . . . . . . . . . . . . . . . . . . . . . . . Level 5 . | . . . . . . . . . . . . . . . . . . . . . . . . High Security . | . . . . . . . . . . . . . . . . . . . . . . . . Max Security . | . . . . . . . . . . . . . . . . . . . . . . . . Peak Influence 520 | 5 115 . 22 . 85 . . . . 441 . . . . 520 . . . . 124 517 244 250 Initial 209 | . . . . . . . . . . . . . . . . . . . . . 54 209 104 Average 192 | . 41 . 2 . 39 . . . . 310 . . . . 268 . . . . 79 244 200 166 Influence Increases 7159 | 15 234 314 42 . 216 75 413 . 111 867 127 . . 620 651 285 100 . 556 208 1905 135 285 Destroy 0b10 Robot/C 3300 | . 160 220 20 . 160 60 280 . 40 360 100 . . 320 200 140 40 . 200 60 860 . 80 Destroy 0b10 Robot/NC 155 | 15 15 . . . 5 . 10 . . 5 . . . 5 15 15 . . 20 10 40 . . Destroy Leader 580 | . 44 20 . . 32 . 20 . 20 82 . . . 40 54 10 10 . 40 22 176 . 10 Allied During Kill 1842 | . . 74 2 . . . 103 . 51 275 27 . . 225 255 120 50 . 251 92 317 . . Successful Hack 45 | . . . 18 . . . . . . . . . . . 9 . . . . 10 8 . . Disable Machine 135 | . 15 . . . . . . . . . . . . . 30 . . . . . 15 . 75 Anti-Garrison Action 150 | . . . . . . . . . . . . . . . . . . . . . 150 . . Destroy Structure 547 | . . . 2 . 4 . . . . 70 . . . . 88 . . . . 14 264 . 105 Partial Spotted 30 | . . . . . . . . . . . . . . . . . . . . . . 15 15 Lose Combat Pursuer 375 | . . . . . 15 15 . . . 75 . . . 30 . . . . 45 . 75 120 . Influence Decreases 7048 | 15 234 314 42 . 154 137 413 . 111 520 474 . . 620 181 755 100 . 556 110 1630 334 348 Entered New Map 606 | . . . . . . 24 . . . . 130 . . . . 174 . . . . 44 164 70 Time Decay 4894 | 15 234 175 40 . 154 93 393 . 111 370 324 . . 580 181 541 100 . 473 110 682 120 198 Lost Part 373 | . . . . . . 20 . . . 10 . . . . . . . . 3 . 210 50 80 Lost Ally 1025 | . . 139 2 . . . 20 . . 140 20 . . 40 . 40 . . 80 . 544 . . Purge Threat 150 | . . . . . . . . . . . . . . . . . . . . . 150 . . Squads Dispatched 34 | . 2 . . . . . 1 . . 4 . . . . 1 . . . . 1 19 4 2 Investigation 3 | . 1 . . . . . . . . . . . . . . . . . . . 2 . . Extermination 11 | . . . . . . . . . . 2 . . . . . . . . . . 7 1 1 Reinforcement 12 | . 1 . . . . . . . . 1 . . . . 1 . . . . 1 6 1 1 Assault 6 | . . . . . . . 1 . . 1 . . . . . . . . . . 2 2 . Garrison 2 | . . . . . . . . . . . . . . . . . . . . . 2 . . Intercept . | . . . . . . . . . . . . . . . . . . . . . . . . Searches Triggered . | . . . . . . . . . . . . . . . . . . . . . . . . Construction Impeded . | . . . . . . . . . . . . . . . . . . . . . . . . Haulers Reinforced 2 | . . . . . . . . . . . . . . . 1 . . . . . 1 . . Active Scanning Responses . | . . . . . . . . . . . . . . . . . . . . . . . . Cargo Convoy Interrupts . | . . . . . . . . . . . . . . . . . . . . . . . . Stealth | -11 -10 -10 -9 -9 -6 -6 -6 -6 -5 -5 -5 -5 -5 -4 -4 -4 -4 -4 -3 -3 -2 -2 -1 --------- Run | Yrd Mat Sub Rec Scr Fac Low Low Zio Pro Fac Upp Upp Zhi Pro Fac Upp Upp War Pro Res Res Qua Acc Distress Signals 14 | . 2 . . . 1 . . . . . . . . . . . . . . . 10 1 . Communications Jammed 45 | . . . . . . . . . . . . . . . . . . . . . . 45 . Distress Signals 45 | . . . . . . . . . . . . . . . . . . . . . . 45 . Times Spotted 261 | . 17 16 1 3 10 5 14 . 1 20 1 . . 7 10 . 1 . 11 3 89 41 11 Peak Tracking Total 21 | . 6 5 1 2 4 3 6 . 1 9 1 . . 5 5 . . . 3 1 10 21 7 Tactical Retreats 17 | . . . . . 1 1 . . . 4 . . . 2 . . . . 3 . 4 2 . Traps | -11 -10 -10 -9 -9 -6 -6 -6 -6 -5 -5 -5 -5 -5 -4 -4 -4 -4 -4 -3 -3 -2 -2 -1 ------- Run | Yrd Mat Sub Rec Scr Fac Low Low Zio Pro Fac Upp Upp Zhi Pro Fac Upp Upp War Pro Res Res Qua Acc Traps Triggered 10 | . 1 . . . . . . . . 1 . . . . . . . . . . 6 1 1 Indirectly 6 | . . . . . . . . . . . . . . . . . . . . . 6 . . Trap Hack Attempts . | . . . . . . . . . . . . . . . . . . . . . . . . Triggered . | . . . . . . . . . . . . . . . . . . . . . . . . Disarmed . | . . . . . . . . . . . . . . . . . . . . . . . . Reprogrammed . | . . . . . . . . . . . . . . . . . . . . . . . . Reused . | . . . . . . . . . . . . . . . . . . . . . . . . Traps Extracted . | . . . . . . . . . . . . . . . . . . . . . . . . Installed . | . . . . . . . . . . . . . . . . . . . . . . . . Triggered . | . . . . . . . . . . . . . . . . . . . . . . . . Machines | -11 -10 -10 -9 -9 -6 -6 -6 -6 -5 -5 -5 -5 -5 -4 -4 -4 -4 -4 -3 -3 -2 -2 -1 ---------- Run | Yrd Mat Sub Rec Scr Fac Low Low Zio Pro Fac Upp Upp Zhi Pro Fac Upp Upp War Pro Res Res Qua Acc Machines Disabled 13 | . 2 2 . . . . . . . . . . . . 2 . . . . . 2 . 5 Max in Single Turn 1 | . 1 1 . . . . . . . . . . . . . . . . . . . . 1 Garrison Access 2 | . . . . . . . . . . . . . . . . . . . . . 1 1 . Energy Cycler 1 | . . . . . . . . . . . . . . . . . . . . . . . 1 Machines Repaired . | . . . . . . . . . . . . . . . . . . . . . . . . Machines Dismantled . | . . . . . . . . . . . . . . . . . . . . . . . . Machines Sabotaged . | . . . . . . . . . . . . . . . . . . . . . . . . Overloaded Fab Kills . | . . . . . . . . . . . . . . . . . . . . . . . . Hacking | -11 -10 -10 -9 -9 -6 -6 -6 -6 -5 -5 -5 -5 -5 -4 -4 -4 -4 -4 -3 -3 -2 -2 -1 --------- Run | Yrd Mat Sub Rec Scr Fac Low Low Zio Pro Fac Upp Upp Zhi Pro Fac Upp Upp War Pro Res Res Qua Acc Machines Accessed 28 | . 2 4 3 1 2 1 . . . 1 . 1 3 . 2 1 1 . . 1 3 2 . Terminals 13 | . 2 . 3 . 1 . . . . . . 1 . . 1 1 . . . 1 2 1 . Fabricators 2 | . . . . . . . . . . . . . . . 1 . . . . . 1 . . Repair Stations 1 | . . . . . . . . . . . . . . . . . . . . . . 1 . Recycling Units . | . . . . . . . . . . . . . . . . . . . . . . . . Scanalyzers 2 | . . . . . 1 . . . . 1 . . . . . . . . . . . . . Garrison Access . | . . . . . . . . . . . . . . . . . . . . . . . . Total Hacks 74 | . 2 9 6 7 4 1 . . . 2 . 1 13 . 7 1 1 . . 4 10 6 . Successful 62 | . . 9 4 7 3 1 . . . 1 . 1 13 . 7 1 1 . . 3 6 5 . Failed 12 | . 2 . 2 . 1 . . . . 1 . . . . . . . . . 1 4 1 . Catastrophic 2 | . 1 . . . . . . . . . . . . . . . . . . . 1 . . Database Lockouts . | . . . . . . . . . . . . . . . . . . . . . . . . Manual 24 | . 1 . 5 . 2 . . . . . . . . . 6 1 . . . 3 4 2 . Terminals 32 | . 2 . 6 . 2 . . . . . . 1 . . 5 1 . . . 4 8 3 . Fabricators 4 | . . . . . . . . . . . . . . . 2 . . . . . 2 . . Repair Stations 3 | . . . . . . . . . . . . . . . . . . . . . . 3 . Recycling Units . | . . . . . . . . . . . . . . . . . . . . . . . . Scanalyzers 4 | . . . . . 2 . . . . 2 . . . . . . . . . . . . . Garrison Access . | . . . . . . . . . . . . . . . . . . . . . . . . Terminal Hacks 44 | . . 9 1 7 . 1 . . . . . 1 13 . 3 1 1 . . 2 3 2 . Record 9 | . . 6 . . . . . . . . . 1 1 . . 1 . . . . . . . Part Schematic 4 | . . . . . . . . . . . . . 4 . . . . . . . . . . Robot Analysis 11 | . . . . 7 . . . . . . . . 4 . . . . . . . . . . Prototype ID Bank 4 | . . . . . . . . . . . . . 4 . . . . . . . . . . Open Door 4 | . . 1 . . . 1 . . . . . . . . . . 1 . . . 1 . . Level Access Points 2 | . . . . . . . . . . . . . . . . . . . . 1 . 1 . Branch Access Points 2 | . . . . . . . . . . . . . . . 1 . . . . . 1 . . Machine Index 1 | . . . . . . . . . . . . . . . . . . . . 1 . . . Unreport Threat 1 | . . . . . . . . . . . . . . . . . . . . . 1 . . Locate Traps 1 | . . . . . . . . . . . . . . . 1 . . . . . . . . Zone Layout 3 | . . . 1 . . . . . . . . . . . 1 . . . . . . 1 . Proto ID Catalog 1 | . . 1 . . . . . . . . . . . . . . . . . . . . . Release Object 1 | . . 1 . . . . . . . . . . . . . . . . . . . . . Fabricator Hacks 1 | . . . . . . . . . . . . . . . 1 . . . . . . . . Build 1 | . . . . . . . . . . . . . . . 1 . . . . . . . . Repair Station Hacks 2 | . . . . . . . . . . . . . . . . . . . . . . 2 . Scan Component 1 | . . . . . . . . . . . . . . . . . . . . . . 1 . Repair 1 | . . . . . . . . . . . . . . . . . . . . . . 1 . Recycling Unit Hacks . | . . . . . . . . . . . . . . . . . . . . . . . . Scanalyzer 3 | . . . . . 2 . . . . 1 . . . . . . . . . . . . . Retrieve Study 3 | . . . . . 2 . . . . 1 . . . . . . . . . . . . . Garrison Access Hacks . | . . . . . . . . . . . . . . . . . . . . . . . . Unauthorized Hacks 12 | . . . 3 . 1 . . . . . . . . . 3 . . . . 1 3 1 . Terminals 9 | . . . 3 . 1 . . . . . . . . . 2 . . . . 1 1 1 . Botnet 5 | . . . . . 1 . . . . . . . . . 1 . . . . 1 1 1 . Operators 1 | . . . . . . . . . . . . . . . 1 . . . . . . . . Skim 3 | . . . 3 . . . . . . . . . . . . . . . . . . . . Fabricators 3 | . . . . . . . . . . . . . . . 1 . . . . . 2 . . Prioritize 2 | . . . . . . . . . . . . . . . 1 . . . . . 1 . . Liberate 1 | . . . . . . . . . . . . . . . . . . . . . 1 . . Repair Stations . | . . . . . . . . . . . . . . . . . . . . . . . . Recycling Units . | . . . . . . . . . . . . . . . . . . . . . . . . Scanalyzers . | . . . . . . . . . . . . . . . . . . . . . . . . Garrison Access . | . . . . . . . . . . . . . . . . . . . . . . . . Data Cores Recovered . | . . . . . . . . . . . . . . . . . . . . . . . . Used . | . . . . . . . . . . . . . . . . . . . . . . . . Hacking Detections 11 | . 2 . 3 . 1 . . . . 1 . . . . . . . . . 1 2 1 . Full Trace Events 3 | . . . 1 . . . . . . . . . . . . . . . . . 2 . . Feedback Events 1 | . . . . . . . . . . . . . . . . . . . . . 1 . . Hackware Fried 1 | . . . . . . . . . . . . . . . . . . . . . 1 . . Feedback Blocked . | . . . . . . . . . . . . . . . . . . . . . . . . Robot Schematics Acquired 3 | . . . . . . . . 3 . . . . . . . . . . . . . . . Robots Built 3 | . . . . . . . . . . . . . . . 3 . . . . . . . . Authchips . | . . . . . . . . . . . . . . . . . . . . . . . . Time 187 | . . . . . . . . . . . . . . . 187 . . . . . . . . Total Robot Build Rating 21 | . . . . . . . . . . . . . . . 21 . . . . . . . . Part Schematics Acquired 19 | . . . . . . . . 15 . . . . 4 . . . . . . . . . . Parts Built . | . . . . . . . . . . . . . . . . . . . . . . . . Authchips . | . . . . . . . . . . . . . . . . . . . . . . . . Time . | . . . . . . . . . . . . . . . . . . . . . . . . Total Part Build Rating . | . . . . . . . . . . . . . . . . . . . . . . . . Part Studies Acquired 3 | . . . . . 2 . . . . 1 . . . . . . . . . . . . . Parts Repaired 1 | . . . . . . . . . . . . . . . . . . . . . . 1 . Time 20 | . . . . . . . . . . . . . . . . . . . . . . 20 . Parts Recycled . | . . . . . . . . . . . . . . . . . . . . . . . . Recycled Matter . | . . . . . . . . . . . . . . . . . . . . . . . . Retrieved Matter . | . . . . . . . . . . . . . . . . . . . . . . . . Retrieved Components . | . . . . . . . . . . . . . . . . . . . . . . . . Parts Scanalyzed . | . . . . . . . . . . . . . . . . . . . . . . . . Part Schematics Acquired . | . . . . . . . . . . . . . . . . . . . . . . . . Parts Damaged . | . . . . . . . . . . . . . . . . . . . . . . . . Bothacking | -11 -10 -10 -9 -9 -6 -6 -6 -6 -5 -5 -5 -5 -5 -4 -4 -4 -4 -4 -3 -3 -2 -2 -1 ------------ Run | Yrd Mat Sub Rec Scr Fac Low Low Zio Pro Fac Upp Upp Zhi Pro Fac Upp Upp War Pro Res Res Qua Acc Used RIF Installer . | . . . . . . . . . . . . . . . . . . . . . . . . Robots Hacked . | . . . . . . . . . . . . . . . . . . . . . . . . Non-combat . | . . . . . . . . . . . . . . . . . . . . . . . . Combat . | . . . . . . . . . . . . . . . . . . . . . . . . Robot Hacks Applied . | . . . . . . . . . . . . . . . . . . . . . . . . Relay Couplers Released 3 | . . . . . . . . . . . . . . . . . . . . . 2 1 . Machine Destruction 3 | . . . . . . . . . . . . . . . . . . . . . 2 1 . Fabnet Peak Effective % . | . . . . . . . . . . . . . . . . . . . . . . . . Robots Rewired . | . . . . . . . . . . . . . . . . . . . . . . . . Allies Hacked 6 | . . . . . . . . . . . . . . . . . . . . . 6 . . Hacks Repelled 1 | . . . . . . . . . . 1 . . . . . . . . . . . . . Allies | -11 -10 -10 -9 -9 -6 -6 -6 -6 -5 -5 -5 -5 -5 -4 -4 -4 -4 -4 -3 -3 -2 -2 -1 -------- Run | Yrd Mat Sub Rec Scr Fac Low Low Zio Pro Fac Upp Upp Zhi Pro Fac Upp Upp War Pro Res Res Qua Acc Total Allies 84 | . . 18 . 5 . . 6 . 3 2 8 2 . 6 3 10 8 . 6 . 7 . . Largest Group 9 | . . 9 2 7 . . 4 2 4 4 4 4 4 4 3 7 7 3 6 2 3 . . Highest-Rated Group 516 | . . 171 38 267 . . 324 151 313 319 324 324 324 324 144 516 516 192 435 96 243 . . Highest-Rated Ally 96 | . . 19 19 47 . . 81 81 81 81 81 81 81 81 48 96 96 96 96 48 89 . . Initial UFD Resources 35 | . . . . . 23 23 23 23 25 25 25 25 25 27 27 27 27 27 31 31 33 33 35 Total Orders 76 | . . . . . . 3 32 . . 6 . . . 5 . 16 . . 4 2 8 . . STAY 20 | . . . . . . 1 7 . . . . . . 2 . 5 . . 2 1 2 . . ROAM 11 | . . . . . . . 10 . . . . . . . . 1 . . . . . . . FOLLOW 32 | . . . . . . 2 11 . . 2 . . . 2 . 8 . . 2 1 4 . . GUARD 2 | . . . . . . . 1 . . . . . . 1 . . . . . . . . . AID 11 | . . . . . . . 3 . . 4 . . . . . 2 . . . . 2 . . Ally Attacks 805 | . . 62 5 30 . . 48 . 23 110 11 . . 83 40 29 8 . 75 31 250 . . Total Damage 25124 | . . 828 61 568 . . 1284 . 462 2693 494 . . 2280 1544 752 275 . 2390 955 10538 . . Kills 160 | . . 12 1 5 . . 19 . 2 19 5 . . 18 12 7 2 . 11 5 42 . . Allies Corrupted 12 | . . 1 . . . . . . . 2 . . . 2 . 1 . . . . 6 . . Allies Melted 6 | . . 1 . 2 . . . . . 1 . . . . . . . . . . 2 . . Borg Created 43 | . . . . . . 3 5 . 1 2 4 1 . 2 . 2 . . 1 . 22 . . Largest Collective 8 | . . . . . . 3 6 . 6 1 4 5 . 7 . 8 . . 7 . 5 . . Intel | -11 -10 -10 -9 -9 -6 -6 -6 -6 -5 -5 -5 -5 -5 -4 -4 -4 -4 -4 -3 -3 -2 -2 -1 ------- Run | Yrd Mat Sub Rec Scr Fac Low Low Zio Pro Fac Upp Upp Zhi Pro Fac Upp Upp War Pro Res Res Qua Acc Active Infowar (turns) 4084 | 33 370 . . . 262 . . . . . . . . . . . . . . 165 2704 255 295 Optics 3471 | . . . . . 262 . . . . . . . . . . . . . . 165 2704 255 85 Sensors 210 | . . . . . . . . . . . . . . . . . . . . . . . 210 Seismic 403 | 33 370 . . . . . . . . . . . . . . . . . . . . . . Cloaking 665 | . . . . . . . . . . . . . . . . . . . . . 665 . . Jamming 380 | . . . . . . . . . . . . . . . . . . . . . 343 37 . Robot Analysis Total 11 | . . . . 7 . . . . . . . . 4 . . . . . . . . . . Derelict Logs Recovered 16 | . . 1 . . . 2 2 1 2 . 1 1 . 3 . 1 2 . . . . . . Drone Launches . | . . . . . . . . . . . . . . . . . . . . . . . . Drone Recoveries . | . . . . . . . . . . . . . . . . . . . . . . . . Exploration | -11 -10 -10 -9 -9 -6 -6 -6 -6 -5 -5 -5 -5 -5 -4 -4 -4 -4 -4 -3 -3 -2 -2 -1 ------------- Run | Yrd Mat Sub Rec Scr Fac Low Low Zio Pro Fac Upp Upp Zhi Pro Fac Upp Upp War Pro Res Res Qua Acc Turns Passed 42751 | 177 727 6801 311 6349 441 2759 6791 1455 1347 1108 1268 637 339 2595 461 2551 1440 66 1501 264 2704 255 404 Spaces Moved 21879 | 94 291 3553 186 3604 243 1717 1307 1029 847 627 727 388 215 1613 254 1396 806 38 799 139 1225 212 569 Core 742 | 18 . . . . . . . . . . . . . . . . . . . . . 155 569 Treads 9495 | 76 291 3553 186 3604 149 . 605 . 1 . . . . . . . . . 5 . 968 57 . Legs 473 | . . . . . 94 377 2 . . . . . . . . . . . . . . . . Wheels 11169 | . . . . . . 1340 700 1029 846 627 727 388 215 1613 254 1396 806 38 794 139 257 . . Hover . | . . . . . . . . . . . . . . . . . . . . . . . . Flight . | . . . . . . . . . . . . . . . . . . . . . . . . Fastest Speed 50 | 50 160 160 160 160 105 105 130 130 145 135 150 150 150 135 150 135 135 150 135 150 155 50 50 Average Speed 149 | 138 160 160 160 160 141 143 185 137 145 140 150 150 150 146 150 136 135 150 150 150 165 78 52 Slowest Speed 250 | 160 160 160 160 160 250 245 250 145 250 150 150 150 150 150 150 150 150 150 240 150 180 155 250 Overloaded Moves . | . . . . . . . . . . . . . . . . . . . . . . . . Propulsion Burnouts . | . . . . . . . . . . . . . . . . . . . . . . . . Robots Hopped . | . . . . . . . . . . . . . . . . . . . . . . . . Potential Cave-ins 2 | . . 2 . . . . . . . . . . . . . . . . . . . . . Cave-ins Triggered . | . . . . . . . . . . . . . . . . . . . . . . . . Teleports 2 | . . . . . . . . . . . . . . . . . . . . . 1 1 . Exploration Rate (%) 58 | 4 63 98 33 91 11 96 90 90 98 25 81 64 61 94 14 97 77 12 97 8 36 43 11 Regions Visited 23 Branch Regions 16 Pre-discovered Areas 4 | . . 1 . . . . 1 . . . . . . . . . 2 . . . . . . Known Exits Taken 14 | . . . . . 1 1 1 1 1 1 1 1 1 1 1 . . . . 1 1 1 . Unknown Exits Taken 9 | 1 1 1 1 1 . . . . . . . . . . . 1 1 1 1 . . . . Scrap Searched 39 | . . 5 . 3 . 2 4 4 2 . 4 2 . 3 . 5 4 . 1 . . . . Spaces Dug 156 | . . 86 . 1 . . . . . 28 1 . . . 2 1 . . 2 3 25 . 7 Terrain Destroyed 296 | . . 163 . 1 4 7 . . . 28 1 . . . 2 1 . . 2 3 33 . 51 Melee 109 | . . 51 . . . . . . . 28 1 . . . 2 1 . . 2 3 21 . . Projectile 37 | . . 4 . 1 4 7 . . . . . . . . . . . . . . 9 . 12 AOE 150 | . . 108 . . . . . . . . . . . . . . . . . . 3 . 39 Terrain Rammed . | . . . . . . . . . . . . . . . . . . . . . . . . Walls Destroyed . | . . . . . . . . . . . . . . . . . . . . . . . . Machines Disabled . | . . . . . . . . . . . . . . . . . . . . . . . . Actions | -11 -10 -10 -9 -9 -6 -6 -6 -6 -5 -5 -5 -5 -5 -4 -4 -4 -4 -4 -3 -3 -2 -2 -1 --------- Run | Yrd Mat Sub Rec Scr Fac Low Low Zio Pro Fac Upp Upp Zhi Pro Fac Upp Upp War Pro Res Res Qua Acc Total 28825 | 124 492 4183 202 4196 311 1979 3809 1066 959 765 878 441 228 1819 326 1948 1099 47 1077 191 1724 302 659 Wait 4564 | 9 141 305 10 535 30 222 1253 18 103 78 124 50 5 172 65 495 256 10 239 38 301 67 38 Move 21857 | 93 290 3552 185 3604 242 1716 1306 1028 846 626 726 387 214 1612 253 1395 805 37 798 138 1224 211 569 Hop . | . . . . . . . . . . . . . . . . . . . . . . . . Pick Up 150 | 7 13 3 2 28 8 8 4 4 3 4 4 1 2 6 1 3 3 . 9 3 30 . 4 Fast Attach 27 | 1 . 3 1 2 2 . . 1 . 1 1 . 2 2 . . . . . 2 3 5 1 Attach 96 | 6 2 . . 1 9 3 2 3 . 2 . . . 3 2 3 2 . 7 1 32 3 15 Detach 25 | . 1 . . . 2 2 . 3 . . . . . . . 1 . . . 1 2 5 8 Swap 46 | . 5 5 . 1 3 . 3 2 . 4 5 . . 4 1 1 . . 3 1 8 . . Drop 119 | . 6 13 3 24 2 5 2 6 3 4 4 1 3 7 . 2 3 . 9 4 12 5 1 Fire 155 | 8 33 39 1 1 13 7 . . . . . . . . . . . . . . 32 . 21 Melee 459 | . . 258 . . . . . . . 41 6 1 2 11 4 45 29 . 10 3 49 . . Ram 8 | . . . . . . 1 . . . . . . . . . . . . . . . 5 2 Kick 36 | . . . . . . 5 31 . . . . . . . . . . . . . . . . Crush 1205 | . 1 . . . . . 1200 . 2 1 . . . . . . . . . . . 1 . Escape Stasis . | . . . . . . . . . . . . . . . . . . . . . . . . Rewire 10 | . . 5 . . . . . . . 2 . . . . . . . . . . 3 . . Trap . | . . . . . . . . . . . . . . . . . . . . . . . . Miscellaneous 68 | . . . . . . 10 8 1 2 2 8 1 . 2 . 3 1 . 2 . 28 . . Route ------- -11/Scrapyard -10/Materials (discovered 3 exits: [*Mat] / [*Min] / *Sub) -10/Subcaves (discovered 3 exits: [*Mat x2] / *Rec) -9/Recycling -9/Scraptown (discovered 2 exits: *Fac x2) -6/Factory -6/Lower Caves -6/Lower Caves (discovered 2 exits: *Fac / *Zio) -6/Zion (discovered 2 exits: Dee / *Pro) -5/Proximity Caves -5/Factory (discovered 2 exits: *Fac / *Upp) -5/Upper Caves -5/Upper Caves (discovered 2 exits: *Fac / *Zhi) -5/Zhirov -4/Proximity Caves -4/Factory (discovered 3 exits: *Upp x2 / Arm) -4/Upper Caves -4/Upper Caves -4/Warlord -3/Proximity Caves -3/Research (discovered 3 exits: *Res x3) -2/Research (discovered 2 exits: *Qua x2) -2/Quarantine -1/Access History --------- Turn | Location | Event 11 | -11/Scrapyard | Discovered new exit (range 15) 178 | -11/Scrapyard | Entered Materials 312 | -10/Materials | Build established: Mutant 432 | -10/Materials | Discovered new exit (range 15) 608 | -10/Materials | Discovered new exit (range 14) 892 | -10/Materials | Discovered new exit (range 7) 905 | -10/Materials | Entered Subcaves 928 | -10/Subcaves | Visited triangular shrine 938 | -10/Subcaves | Found Prototype Device 938 | -10/Subcaves | Identified V3-11A's Pendant 943 | -10/Subcaves | Befriended Subdweller 973 | -10/Subcaves | Befriended Subdweller 973 | -10/Subcaves | Befriended Subdweller 988 | -10/Subcaves | Discovered new exit (range 8) 1086 | -10/Subcaves | Visited 4L-MR0's lab 1105 | -10/Subcaves | Found Prototype Special Melee Weapon 1115 | -10/Subcaves | Found Power Bank 1393 | -10/Subcaves | Befriended Subdweller 1393 | -10/Subcaves | Befriended Subdweller 1598 | -10/Subcaves | Befriended Subdweller 1608 | -10/Subcaves | Befriended Subdweller 1632 | -10/Subcaves | Lost 3 allies 1863 | -10/Subcaves | Learned location of Zion (-6) 1863 | -10/Subcaves | Met a Zionite searching for "candidates" 2163 | -10/Subcaves | Befriended Subdweller 2173 | -10/Subcaves | Befriended Subdweller 2552 | -10/Subcaves | Visited Clippyterm 2557 | -10/Subcaves | Learned Factory fabricator intel 2557 | -10/Subcaves | Learned Factory trap positions 2793 | -10/Subcaves | Befriended Subdweller 2798 | -10/Subcaves | Befriended Subdweller 2801 | -10/Subcaves | Learned location of 1 exit from Materials 2801 | -10/Subcaves | Discovered new exit (range 4) 2843 | -10/Subcaves | Befriended Subdweller 2848 | -10/Subcaves | Befriended Subdweller 2853 | -10/Subcaves | Befriended Subdweller 2968 | -10/Subcaves | Befriended Subdweller 3237 | -10/Subcaves | Discovered new exit (range 11) 3272 | -10/Subcaves | Lost 4 allies 3302 | -10/Subcaves | A swath of the cavern ceiling suddenly collapsed 3332 | -10/Subcaves | Shifting Twisted Machinery released Spk. Treads 3344 | -10/Subcaves | Shifting Twisted Machinery released Battle Cannon 3369 | -10/Subcaves | A swath of the cavern ceiling suddenly collapsed 5093 | -10/Subcaves | Befriended Subdweller 6353 | -10/Subcaves | Befriended Subdweller 6353 | -10/Subcaves | Befriended Subdweller 6383 | -10/Subcaves | Lost 4 allies 7706 | -10/Subcaves | Entered Recycling 7706 | -9/Recycling | Accompanied by 3 allies 7971 | -9/Recycling | Scanned before Scraplab entrance 7995 | -9/Recycling | Entered Scraplab 8008 | -9/Recycling | Discovered new exit (range 3) 8017 | -9/Recycling | Entered Scraptown 8017 | -9/Scraptown | Accompanied by 2 allies 8206 | -9/Scraptown | Visited UFD Registry 8206 | -9/Scraptown | Registered with UFD as "Nullninja" 8272 | -9/Scraptown | Visited Analyses Database 8329 | -9/Scraptown | Visited Scrapoid Research Area 8357 | -9/Scraptown | Visited Junk Repository 8393 | -9/Scraptown | Visited Derelict Rescue Squad 8417 | -9/Scraptown | Visited Scrapoid Pod Storage 8441 | -9/Scraptown | Visited Junk Repository 8465 | -9/Scraptown | Visited Chapter 10 8491 | -9/Scraptown | Visited Curators Association 8513 | -9/Scraptown | Visited LU-1G1's Boring Crew 8635 | -9/Scraptown | Delivered Scrap Shield to a Scientist 8915 | -9/Scraptown | Found Scrapoid Pod 9467 | -9/Scraptown | Heard Great Nut preacher, LISTEN AND RECITE! 9594 | -9/Scraptown | Discovered new exit (range 11) 9712 | -9/Scraptown | Visited Fellowship of the Rings 9757 | -9/Scraptown | Visited CR-KLE's Repair Center 9886 | -9/Scraptown | Visited TADAMA 10270 | -9/Scraptown | Discovered new exit (range 5) 10418 | -9/Scraptown | Visited Artisan Demo Area 10445 | -9/Scraptown | Visited Observation Area 10502 | -9/Scraptown | Visited Science Testing Area 13320 | -9/Scraptown | Delivered V3-11A's Pendant to T0-NE2 in exchange for information 13713 | -9/Scraptown | Found DRS Beacon 13835 | -9/Scraptown | Met Optimus 13835 | -9/Scraptown | Accepted into 0bPrime 14235 | -9/Scraptown | Civil war broke out across Scraptown 14315 | -9/Scraptown | Scrapoid Pod released 09S07-D (x5) 14321 | -9/Scraptown | Lost 5 allies 14366 | -9/Scraptown | Entered Factory 14366 | -6/Factory | Evolved 8 slots: Propulsion x2, Utility x3, Weapon x3 14367 | -6/Factory | Loaded intel: 89 trap records 14368 | -6/Factory | Loaded intel: 6 fabricator locations 14389 | -6/Factory | Lost 4 allies 14768 | -6/Factory | Discovered new exit (range 8) 14806 | -6/Factory | Identified exit to Lower Caves 14807 | -6/Factory | Entered Lower Caves 14809 | -6/Lower Caves | UFD Scientist delivered a prototype 14809 | -6/Lower Caves | Attracted the attention of an 0b10 checkpoint 14845 | -6/Lower Caves | Found Prototype Protection 14938 | -6/Lower Caves | Identified 1B-0RG's Assimilator 14944 | -6/Lower Caves | Activated DRS Beacon 15070 | -6/Lower Caves | Assimilating JJ-YT1(h) into Collective. 15073 | -6/Lower Caves | Assimilating MO-8O9(h) into Collective. 15226 | -6/Lower Caves | Build established: Scavenger-Mutant 15343 | -6/Lower Caves | Encountered a Warlord checkpoint 15353 | -6/Lower Caves | Learned Factory garrison access intel 15829 | -6/Lower Caves | Learned location of 1 exit from Factory 16282 | -6/Lower Caves | Spotted B-75 Beast 16650 | -6/Lower Caves | Build established: Mutant 16947 | -6/Lower Caves | Discovered new exit (range 9) 16957 | -6/Lower Caves | Identified exit to Lower Caves 16995 | -6/Lower Caves | Assimilating Beast 5a into Collective. 17566 | -6/Lower Caves | Entered another Lower Caves area 17566 | -6/Lower Caves | Accompanied by 3 allies 17806 | -6/Lower Caves | Attracted the attention of an 0b10 outpost 17834 | -6/Lower Caves | Prototype Device suddenly appears! 17872 | -6/Lower Caves | Found Prototype Device 17873 | -6/Lower Caves | Identified Amulet of Y3-NDR 17893 | -6/Lower Caves | Assimilating Smith 5a into Collective. 17908 | -6/Lower Caves | Joined by bewildered Wizard 17909 | -6/Lower Caves | Joined by bewildered Wizard 17910 | -6/Lower Caves | Joined by bewildered Wizard 17913 | -6/Lower Caves | Assimilating XW-TPS(p) into Collective. 17980 | -6/Lower Caves | Discovered new exit (range 8) 17988 | -6/Lower Caves | Identified exit to Factory 18003 | -6/Lower Caves | Assimilating K1-FBY(p) into Collective. 18007 | -6/Lower Caves | Joined by bewildered Wizard 18012 | -6/Lower Caves | Joined by bewildered Wizard 18040 | -6/Lower Caves | Joined by bewildered Wizard 18048 | -6/Lower Caves | Learned 4 Factory zone layouts 18090 | -6/Lower Caves | Assimilating 1C-VN5(p) into Collective. 18410 | -6/Lower Caves | Discovered new exit (range 124) 23392 | -6/Lower Caves | Identified exit to Zion 23625 | -6/Lower Caves | Encountered a Warlord checkpoint 23719 | -6/Lower Caves | Lost 4 allies 23746 | -6/Lower Caves | Assimilating LA-LE4(p) into Collective. 24357 | -6/Lower Caves | Entered Zion 24357 | -6/Zion | Accompanied by 7 allies 24460 | -6/Zion | Discovered new exit (range 14) 24517 | -6/Zion | Found Prototype Device 24518 | -6/Zion | Identified Bomb Factory No. 2 24606 | -6/Zion | Given A8's code to call for help 24611 | -6/Zion | Given the Hacking Drone Bay 24613 | -6/Zion | Found Prototype Device 25028 | -6/Zion | Received a hallucinogenic algorithm 25101 | -6/Zion | Identified exit to Deep Caves 25294 | -6/Zion | Build established: Derelict-Mutant 25436 | -6/Zion | Turned away by Imprinter 25806 | -6/Zion | Identified exit to Proximity Caves 25812 | -6/Zion | Entered Proximity Caves 25812 | -5/Proximity Caves | Accompanied by 7 allies 25960 | -5/Proximity Caves | Joined by bewildered Wizard 25962 | -5/Proximity Caves | Joined by bewildered Wizard 26697 | -5/Proximity Caves | Learned Factory stockpile data 26730 | -5/Proximity Caves | Spotted B-75 Beast 26741 | -5/Proximity Caves | Allies destroyed B-75 Beast 26843 | -5/Proximity Caves | Assimilating 1D-G45(p) into Collective. 26892 | -5/Proximity Caves | Joined by bewildered Wizard 27159 | -5/Proximity Caves | Entered Factory 27159 | -5/Factory | Accompanied by 10 allies 27159 | -5/Factory | Evolved 2 slots: Utility x1, Weapon x1 27160 | -5/Factory | Identified exit to Upper Caves 27163 | -5/Factory | Loaded intel: 4 garrison access locations 27394 | -5/Factory | Joined by bewildered Wizard 27395 | -5/Factory | Joined by bewildered Wizard 27396 | -5/Factory | Discovered new exit (range 16) 27423 | -5/Factory | Identified exit to Factory 27494 | -5/Factory | Spotted B-75 Beast 27515 | -5/Factory | Allies destroyed B-75 Beast 27759 | -5/Factory | First assault squad dispatched 27829 | -5/Factory | Lost 4 allies 27978 | -5/Factory | Build established: Mutant 28114 | -5/Factory | Assimilating Sage 6a into Collective. 28165 | -5/Factory | Assimilating Smith 6a into Collective. 28267 | -5/Factory | Entered Upper Caves 28267 | -5/Upper Caves | Accompanied by 1 ally 28352 | -5/Upper Caves | Joined by bewildered Wizard 28352 | -5/Upper Caves | Joined by bewildered Wizard 28366 | -5/Upper Caves | Assimilating HO-ZGJ(p) into Collective. 28476 | -5/Upper Caves | Attracted the attention of an 0b10 checkpoint 28495 | -5/Upper Caves | Identified Hacking Drone Bay 28507 | -5/Upper Caves | Joined by bewildered Wizard 28508 | -5/Upper Caves | Joined by bewildered Wizard 28509 | -5/Upper Caves | Joined by bewildered Wizard 28519 | -5/Upper Caves | Assimilating 4E-HH2(p) into Collective. 28551 | -5/Upper Caves | Assimilating B0-O8Z(p) into Collective. 28571 | -5/Upper Caves | Joined by bewildered Wizard 28574 | -5/Upper Caves | Joined by bewildered Wizard 28629 | -5/Upper Caves | Joined by bewildered Wizard 29260 | -5/Upper Caves | Entered a destroyed Warlord outpost 29397 | -5/Upper Caves | Assimilating 8T-VI8(p) into Collective. 29427 | -5/Upper Caves | Discovered new exit (range 16) 29446 | -5/Upper Caves | Learned location of 1 exit from Upper Caves 29460 | -5/Upper Caves | Identified exit to Upper Caves 29535 | -5/Upper Caves | Entered another Upper Caves area 29535 | -5/Upper Caves | Accompanied by 7 allies 29536 | -5/Upper Caves | Identified exit to Zhirov 29563 | -5/Upper Caves | Discovered exit to Factory (range 19) 29745 | -5/Upper Caves | Learned Factory security intel 29751 | -5/Upper Caves | Joined by bewildered Wizard 29903 | -5/Upper Caves | Assimilating IJ-FG9(p) into Collective. 29921 | -5/Upper Caves | Joined by bewildered Wizard 30172 | -5/Upper Caves | Entered Zhirov 30172 | -5/Zhirov | Accompanied by 9 allies 30172 | -5/Zhirov | Discovered new exit (range 3) 30199 | -5/Zhirov | Met Zhirov 30241 | -5/Zhirov | Zhirov requested help retrieving the SGEMP Prototype 30308 | -5/Zhirov | Found Alien Artifact 30308 | -5/Zhirov | Identified Integrated Reactor 30308 | -5/Zhirov | Installed Integrated Reactor, increased core energy generation (+10) 30450 | -5/Zhirov | Found Alien Artifact 30504 | -5/Zhirov | Identified exit to Proximity Caves 30511 | -5/Zhirov | Entered Proximity Caves 30511 | -4/Proximity Caves | Accompanied by 9 allies 30572 | -4/Proximity Caves | Found Imp. Powered Armor 30607 | -4/Proximity Caves | Assimilating EG-Z52(p) into Collective. 30653 | -4/Proximity Caves | Joined by bewildered Wizard 30653 | -4/Proximity Caves | Joined by bewildered Wizard 30656 | -4/Proximity Caves | Joined by bewildered Wizard 30675 | -4/Proximity Caves | Joined by bewildered Wizard 30919 | -4/Proximity Caves | Joined by bewildered Wizard 30999 | -4/Proximity Caves | Assimilating TC-616(p) into Collective. 31024 | -4/Proximity Caves | Joined by bewildered Wizard 31397 | -4/Proximity Caves | Learned Research machine intel 31488 | -4/Proximity Caves | Spotted B-86 Titan 31791 | -4/Proximity Caves | Discovered exit to Factory (range 6) 31797 | -4/Proximity Caves | Learned Research emergency access door positions 31887 | -4/Proximity Caves | Learned Research emergency access door positions 32308 | -4/Proximity Caves | Murdered 3 allies 33106 | -4/Proximity Caves | Entered Factory 33106 | -4/Factory | Accompanied by 7 allies 33106 | -4/Factory | Evolved 2 slots: Utility x2 33181 | -4/Factory | Identified exit to Upper Caves 33181 | -4/Factory | Identified exit to Armory 33229 | -4/Factory | Fabricated L-61 Swordsman? 33410 | -4/Factory | Build established: Hacker-Mutant 33567 | -4/Factory | Entered Upper Caves 33567 | -4/Upper Caves | Accompanied by 10 allies 33798 | -4/Upper Caves | Joined by bewildered Wizard 33799 | -4/Upper Caves | Joined by bewildered Wizard 33800 | -4/Upper Caves | Joined by bewildered Wizard 33827 | -4/Upper Caves | Assimilating XU-3KI(p) into Collective. 33837 | -4/Upper Caves | Joined by bewildered Wizard 33838 | -4/Upper Caves | Joined by bewildered Wizard 34548 | -4/Upper Caves | Encountered a Warlord checkpoint 34573 | -4/Upper Caves | Discovered new exit (range 4) 34741 | -4/Upper Caves | Learned Research terminal intel 34823 | -4/Upper Caves | Enhanced Grunt warped into view, answering call for help 34830 | -4/Upper Caves | Assimilating Enhanced Grunt into Collective. 34831 | -4/Upper Caves | Enhanced Grunt warped into view, answering call for help 35644 | -4/Upper Caves | Joined by bewildered Wizard 35645 | -4/Upper Caves | Joined by bewildered Wizard 35670 | -4/Upper Caves | Murdered 4 allies 35708 | -4/Upper Caves | Joined by bewildered Wizard 35853 | -4/Upper Caves | Murdered 4 allies 36118 | -4/Upper Caves | Entered another Upper Caves area 36118 | -4/Upper Caves | Accompanied by 10 allies 36225 | -4/Upper Caves | Joined by bewildered Wizard 36235 | -4/Upper Caves | Joined by bewildered Wizard 36272 | -4/Upper Caves | Joined by bewildered Wizard 36273 | -4/Upper Caves | Joined by bewildered Wizard 36627 | -4/Upper Caves | Learned location of Testing (-3) 36839 | -4/Upper Caves | Learned location of Armory (-4) 36911 | -4/Upper Caves | Discovered new exit (range 6) 37365 | -4/Upper Caves | Joined by bewildered Wizard 37410 | -4/Upper Caves | Murdered 3 allies 37415 | -4/Upper Caves | Joined by bewildered Wizard 37416 | -4/Upper Caves | Joined by bewildered Wizard 37472 | -4/Upper Caves | Joined by bewildered Wizard 37506 | -4/Upper Caves | Murdered 3 allies 37558 | -4/Upper Caves | Entered Warlord 37558 | -4/Warlord | Accompanied by 10 allies 37595 | -4/Warlord | Discovered new exit (range 14) 37624 | -4/Warlord | Entered Proximity Caves 37624 | -3/Proximity Caves | Accompanied by 10 allies 37781 | -3/Proximity Caves | Joined by bewildered Wizard 37784 | -3/Proximity Caves | Joined by bewildered Wizard 37787 | -3/Proximity Caves | Joined by bewildered Wizard 37803 | -3/Proximity Caves | Assimilating Enhanced Grunt into Collective. 37848 | -3/Proximity Caves | Joined by bewildered Wizard 37852 | -3/Proximity Caves | Joined by bewildered Wizard 37936 | -3/Proximity Caves | Joined by bewildered Wizard 38474 | -3/Proximity Caves | Spotted B-86 Titan 38523 | -3/Proximity Caves | Lost 4 allies 38722 | -3/Proximity Caves | Allies destroyed B-86 Titan 38883 | -3/Proximity Caves | Discovered new exit (range 4) 39125 | -3/Proximity Caves | Entered Research 39125 | -3/Research | Accompanied by 9 allies 39125 | -3/Research | Evolved 2 slots: Propulsion x1, Utility x1 39127 | -3/Research | Loaded intel: 103 machine locations 39128 | -3/Research | Loaded intel: 19 terminal locations 39320 | -3/Research | Identified exit to Research 39389 | -3/Research | Entered another Research area 39389 | -2/Research | Accompanied by 9 allies 39389 | -2/Research | Evolved 2 slots: Propulsion x1, Utility x1 39392 | -2/Research | Attached Power Bank, gained temporary slots: Power x3 39446 | -2/Research | Spotted B-90 Cyclops 39464 | -2/Research | Allies destroyed B-90 Cyclops 39467 | -2/Research | Garrison activated, responded to threat 39507 | -2/Research | Lost 4 allies 39509 | -2/Research | Assimilating Terminator 9a into Collective. 39535 | -2/Research | Assimilating Enforcer 9a into Collective. 39563 | -2/Research | Lost 3 allies 39607 | -2/Research | Spotted B-90 Cyclops 39661 | -2/Research | Allies destroyed B-90 Cyclops 39703 | -2/Research | Assimilating Warden 9a into Collective. 39793 | -2/Research | Assimilating Master 9a into Collective. 39807 | -2/Research | Assimilating Master 9b into Collective. 39953 | -2/Research | Spotted B-90 Cyclops 40206 | -2/Research | Assimilating Enforcer 9b into Collective. 40211 | -2/Research | Assimilating Enforcer 9c into Collective. 40215 | -2/Research | Assimilating Enforcer 9d into Collective. 40232 | -2/Research | Assimilating Enforcer 9e into Collective. 40536 | -2/Research | Assimilating Enforcer 9f into Collective. 40588 | -2/Research | Assimilating Master 9c into Collective. 40604 | -2/Research | Assimilating Master 9d into Collective. 40924 | -2/Research | Assimilating Rainmaker 9a into Collective. 40934 | -2/Research | Assimilating Rainmaker 9b into Collective. 40956 | -2/Research | Assimilating Master 9e into Collective. 40971 | -2/Research | Assimilating Master 9f into Collective. 41001 | -2/Research | Assimilating Enforcer 9g into Collective. 41024 | -2/Research | Assimilating Enforcer 9h into Collective. 41050 | -2/Research | Assimilating Enforcer 9i into Collective. 41068 | -2/Research | Assimilating Artificer 9a into Collective. 41071 | -2/Research | Lost 6 allies 41240 | -2/Research | Assimilating Electro 9a into Collective. 41248 | -2/Research | Assimilating Electro 9b into Collective. 41255 | -2/Research | System corruption reached 10% 41268 | -2/Research | Identified Enh. Scrap Shield 41297 | -2/Research | Identified Transdimensional Reconstructor 41297 | -2/Research | Warped through subspace 41298 | -2/Research | Core integrity fell below 50% 41300 | -2/Research | Lost 4 allies 41323 | -2/Research | Lost 12 parts (3p1n5u3w) 41394 | -2/Research | Joined by bewildered Wizard 41394 | -2/Research | Joined by bewildered Wizard 41395 | -2/Research | Joined by bewildered Wizard 41450 | -2/Research | Joined by bewildered Wizard 41452 | -2/Research | Joined by bewildered Wizard 41452 | -2/Research | Joined by bewildered Wizard 41462 | -2/Research | Adv. Hacking Suite fried by hacking feedback 41476 | -2/Research | Lost 3 allies 41718 | -2/Research | Found Prototype Launcher 41719 | -2/Research | Identified Enh. Gamma Bomb Array 41846 | -2/Research | Identified exit to Quarantine 42015 | -2/Research | Build established: Hacker-Tank 42050 | -2/Research | System corruption reached 30% 42093 | -2/Research | Entered Quarantine 42101 | -2/Quarantine | Lost 5 parts (1p2n2u) 42107 | -2/Quarantine | Identified exit to Access 42238 | -2/Quarantine | Found Transdimensional Reconstructor 42238 | -2/Quarantine | Warped through subspace 42266 | -2/Quarantine | Repaired Imp. Heavy Treads 42331 | -2/Quarantine | Core integrity fell below 20% 42348 | -2/Quarantine | Entered Access 42348 | -1/Access | Evolved 2 slots: Propulsion x2 42392 | -1/Access | Energy Cycler disabled 42493 | -1/Access | Build established: Hacker-Mutant 42700 | -1/Access | Spotted B-99 Colossus 42725 | -1/Access | System corruption reached 10% 42729 | -1/Access | Core integrity fell below 50% 42746 | -1/Access | Core integrity fell below 20% 42752 | -1/Access | Destroyed by H-81 Overseer with Heavy Linear Accelerator Last Messages --------------- 42716_ Adv. Sensor Array destroyed. 42719_ Arm. Huge Wheel+ destroyed. 42722_ U-05 Engineer builds a Wall. 42723_ The unstable cave ceiling collapses. 42732_ System corrupted: Matter fused (-10). 42734_ Hvy. Armor Plating destroyed. 42736_ Adv. Hacking Suite severed. 42737_ Adv. System Shield severed. 42740_ Hvy. Neutron Cannon destroyed. 42741_ Identified Imp. Matter Neutralizer. 42742_ Wave Collapse Detector explodes. 42742_ R-10 Processor destroyed. 42742_ K-01 Serf destroyed. 42743_ Imp. Matter Neutralizer severed. 42744_ The unstable cave ceiling collapses. 42745_ P-80 Master resets C-57 Dissector, system corruption cleaned. 42748_ Knocked back. 42748_ C-57 Dissector knocked back. 42752_ The unstable cave ceiling collapses. Map ----- +----------------------------------------------------+ | ????????????# #?????????????????????????????????? | | ????????????# #?????????????????????????????????? | | ????????????# #?????????????????????????????????? | | ######??????# #?????????????????????????????????? | | #??????# #?????????????????????????????????? | | #??????# #???? ??????????????????????????? | | #??????# #???? ?????????????????????????? | | ???????# #???# ????????????????????????? | | ???????# #???? ???????????????????????? | | ????????# #?????? ???????????????????????? | | ???????# #??????? ??????????????????????? | | ???????## ##??????? ?????????????????????? | | "" ????????# ##########//#####????????????????? | | "" #?????# #????????????????? | | #?????# ######! #?????? | | #?????# ############## #?????? | | ######???####+#####??????????# ###### " ?????? | | ?????????# #??????????# #????????????????? | | ?????????# #??????????# #????????????????? | | ?????????# ############ #????????????????? | | ?????????# ## # #????????????????? | | ?????????# #= # #????????????????? | | ?????????# H # #????????????????? | | ?????????# + #????????????????? | | ?????????# # ########?????????? | | ?????????# % # ! @ # # ???#??????? | | ????????## c c % # # ?? #??????? | | ????????# c # # " #??????? | | ????????## c####;#### # """ #??????? | | ???????# #??###??# # """ #??????? | | ???????# ##???????# # " ???????? | | ######### ########### # ?????????? | | ] # # # ???????##### | | [ # # ###+########## ! | | # ## # | | ## ##### # ^ " | | ##?# #???# # ###+########## | | % #?#?????# / #? ????????##+## | | #???????# # #? ????????# | | # #???????# # ## ???????# | | ##### # ##???????########### ## ???????# | | # # #??????????????????# ## ??????# | | ###########??????????????????# ## ??????# " | | ????????????????????????????? ########?????# | | ????????????????????????????? #????????????# | | ???????????????????????????? #????????????# | | ??????????????????????????? #????????????##### | | ???????????????????????? #????????????????? | | ?????????????????????? #????????????????? | | ??????????????????? #????????????????? | +----------------------------------------------------+ Best States ------------- Heat Dissipation 75 Energy Generation 64 Energy Capacity 770 Matter Stores 850 Matter Capacity 850 Sight Range 23 Robot Scan Range 16 Terrain Scan Density 10 Jamming Range 14 Cloak Strength 4 Power Amplification 30 Armor Coverage 1000 Resistance: TH 15 Utility Shielding 90 Evasion (%) 55 Recoil Reduction 6 Energy Filtering 30 Offensive Hacking 42 Defensive Hacking 14 Authchip Count 1 Item Schematics ----------------- Adv. Sensor Array | -6/Zion | Archive Hyp. Gauss Cannon | -6/Zion | Archive Enh. Optical Array | -6/Zion | Archive Arm. Medium Treads | -6/Zion | Archive Adv. Signal Interpreter | -6/Zion | Archive Imp. Transmission Jammer | -6/Zion | Archive EM Shield | -6/Zion | Archive Adv. Cryofiber Web | -6/Zion | Archive Imp. Antigrav System | -6/Zion | Archive Focal Shield | -6/Zion | Archive Imp. Dynamic Insulation System | -6/Zion | Archive Imp. Hardlight Generator | -6/Zion | Archive Imp. Shock Absorption System | -6/Zion | Archive Imp. Recalibrator | -6/Zion | Archive Power Amplifier | -6/Zion | Archive Assault Drone Bay | -5/Zhirov | Free Exp. Heat Sink | -5/Zhirov | Free Exp. Optical Array | -5/Zhirov | Free Imp. Arc Thrower | -5/Zhirov | Free Robot Schematics ------------------ A-02 Transporter | -6/Zion | Archive X-67 Chaingunner | -6/Zion | Archive G-50 Soldier | -6/Zion | Archive Fabricated ------------ L-61 Swordsman | x3 | -4/Factory | Preloaded Repaired ---------- Imp. Heavy Treads | 14% | -2/Quarantine Studied --------- Carbon-fiber Leg | -6/Factory | Hacked Gauss Cannon | -6/Factory | Hacked Arm. Huge Wheel | -5/Factory | Hacked Alien Tech Used ----------------- Integrated Reactor Transdimensional Reconstructor Achievements -------------- Beloved Collateral Damage Express Service Help From High Places Rodney's Helpers We Are The Borg We Love MA Challenges ------------ None Game ------ Seed GravmagDamperRocket Manual? 0 Play Time 04:55:55 Cumulative 92.5 hours Start 2026.03.12 @ 11:58:58 End 2026.03.13 @ 00:49:20 Sessions 3 Manual Loads 0 Difficulty Rogue Special Mode None Game No. 70 Rogue 70 Adventurer 0 Explorer 0 Win Type - Total 1 Types 0/0/0/1/0/0/0/0/0/0 Lore% 44 Gallery% 48 Achievement% 44 Wizard Run 0 Options --------- Layout 2 ASCII 0 Keyboard 0 Movement Mouse Keybinds 0 Fullscreen 1 Font 48/Smallcaps Map View 50x44 Zoom Use 0% Tactical HUD 1 Map Filters NONE Filters NONE Steam 1 RUN: 7ee9d41a-7a5f-4377-9c04-1ec0287c17db